bitfinex/quotes_ETHUSD_20220109
["timestamp","ask_amount","ask_price","bid_price","bid_amount"]
[1641736503023,0.8083,3094.7,3094.4,0.00397897]
[1641736503424,2.4249513,3094.7,3094.4,0.00397897]
[1641736503624,3.4249513,3094.7,3094.4,0.00397897]
[1641736503867,4.2332513,3094.7,3094.4,0.00397897]
[1641736504067,0.80828,3094.6,3094.4,0.00397897]
[1641736504868,2.61656,3094.6,3094.4,0.00397897]
[1641736505470,1.61656,3094.6,3094.4,0.00397897]
[1641736505872,2.4248364,3094.6,3094.4,0.00397897]
[1641736506377,0.80829,3094.4,3093.9,0.44399191]
[1641736506772,0.80829,3094.4,3094.1,0.76334825]
[1641736507171,0.80829,3094.4,3094.2,0.00113685]
[1641736507373,1.6166166,3094.4,3094.2,0.00113685]
[1641736507617,2.4249166,3094.4,3094.2,0.00113685]
[1641736507814,1.61659,3094.4,3093.7,0.00397896]
[1641736508013,0.80846,3094.1,3093.7,0.00397896]
[1641736508413,1.10846,3094.1,3093.7,0.00397896]
[1641736508613,1.0,3094.2,3093.5,0.00511581]
[1641736508816,1.6170591,3094.0,3093.5,0.00511581]
[1641736509014,0.80848,3093.8,3093.5,0.00511581]
[1641736509921,0.80848,3093.7,3093.1,0.0073895]
[1641736510217,0.80864,3093.4,3093.1,0.0073895]
[1641736510416,2.3723254,3093.9,3093.1,0.0073895]
[1641736510616,3.05136555,3093.9,3093.1,0.0073895]
[1641736511017,3.05136555,3093.9,3092.9,0.00852635]
[1641736511275,0.80867,3093.2,3092.9,0.00852635]
[1641736511664,0.80867,3093.2,3093.0,1.2313673]
[1641736511862,1.61728,3093.5,3093.0,1.2313673]
[1641736512063,0.3,3093.9,3093.1,0.0073895]
[1641736512262,0.8085209,3093.7,3093.1,0.0073895]
[1641736512463,1.16298457,3094.5,3093.6,0.68929203]
[1641736512663,2.1504,3094.5,3093.6,0.68929203]
[1641736512866,1.0,3094.5,3093.7,0.00397896]
[1641736513063,3.9711,3094.6,3093.8,1.34241761]
[1641736513262,0.08027422,3094.8,3093.8,1.34241761]
[1641736513463,0.14757674,3093.6,3093.4,1.2313673]
[1641736513669,0.14757674,3093.6,3092.4,4.1301312]
[1641736513670,4.14876642,3091.8,3091.4,6.47281272]
[1641736513865,4.14876642,3091.8,3090.5,8.02949757]
[1641736513866,5.12931272,3091.4,3090.5,7.80982133]
[1641736514063,5.12931272,3091.4,3090.5,13.28170052]
[1641736514064,0.1294427,3091.3,3090.5,13.28170052]
[1641736514263,8.15,3091.2,3090.0,0.03]
[1641736514464,0.01234558,3090.1,3090.0,5.95433705]
[1641736514663,0.80945,3090.2,3090.0,1.25433705]
[1641736514864,1.61889,3090.5,3090.0,1.25433705]
[1641736514865,55.73686445,3090.3,3090.0,1.25433705]
[1641736515117,55.73686445,3090.3,3089.1,9.24189222]
[1641736515316,0.01442913,3091.0,3089.2,1.29237008]
[1641736515317,0.00227369,3091.0,3089.2,1.29237008]
[1641736515519,0.00227369,3091.0,3089.3,18.83]
[1641736515718,0.00454739,3090.9,3089.3,18.12401209]
[1641736515918,5.03386011,3091.4,3089.6,0.809]
[1641736516117,4.14876642,3091.8,3090.0,0.01246599]
[1641736516118,0.00170527,3091.2,3090.0,0.01246599]
[1641736516417,0.00454739,3091.7,3090.2,1.13854446]
[1641736516617,0.00454739,3091.7,3090.4,17.373]
[1641736516818,0.00227369,3091.6,3090.6,17.373]
[1641736517018,0.00227369,3091.6,3091.5,0.69222033]
[1641736517218,0.00170527,3091.5,3090.7,0.00284212]
[1641736517417,0.00227369,3091.6,3090.7,0.00284212]
[1641736517717,0.00170527,3091.5,3090.7,2.75626646]
[1641736518122,0.00113685,3091.4,3091.3,1.32883256]
[1641736518518,0.00284212,3091.4,3091.3,1.32883256]
[1641736518777,1.21171388,3091.8,3091.3,1.32883256]
[1641736518963,1.21171388,3091.8,3091.3,1.33110625]
[1641736519163,1.21171388,3091.8,3091.4,0.00170527]
[1641736519566,1.21171388,3091.8,3091.5,0.78390888]
[1641736521465,1.16171388,3091.8,3091.5,0.78390888]
[1641736523115,1.16171388,3091.8,3091.6,2.14594992]
[1641736523321,1.16171388,3091.8,3091.6,2.22389044]
[1641736523717,1.61178918,3092.6,3091.5,0.78390888]
[1641736523916,1.61178918,3092.6,3091.6,15.08603607]
[1641736524115,0.00454739,3092.5,3092.2,0.73680666]
[1641736524516,1.61178918,3092.6,3092.2,0.73680666]
[1641736524517,0.00397896,3092.4,3092.2,0.73680666]
[1641736524916,0.00341054,3092.3,3092.2,0.73680666]
[1641736525316,0.00341054,3092.3,3092.1,1.05304273]
[1641736525718,0.00284211,3092.2,3091.4,4.91910527]
[1641736526022,0.00227369,3092.1,3091.5,0.00113685]
[1641736526275,0.00227369,3092.1,3092.0,0.7502684]
[1641736526468,1.6177165,3092.3,3092.0,0.7502684]
[1641736526668,0.8088565,3092.3,3092.0,0.7502684]
[1641736526968,0.00284211,3092.2,3092.0,0.7502684]
[1641736527369,0.00227369,3092.1,3092.0,0.7502684]
[1641736527569,0.00227369,3092.1,3092.0,1.88162903]
[1641736527972,0.00227369,3092.1,3092.0,5.78162903]
[1641736528575,0.00227369,3092.1,3092.0,8.53697491]
[1641736528777,49.17927144,3092.8,3092.0,4.63697491]
[1641736529075,0.00341054,3092.7,3092.5,1.36761234]
[1641736529475,0.00284212,3092.6,3092.5,1.36761234]
[1641736529675,6.06585929,3092.9,3092.6,16.0]
[1641736529676,2.00988157,3092.9,3092.6,16.0]
[1641736529875,2.00988157,3092.9,3092.7,2.86005266]
[1641736530120,0.00113685,3092.8,3092.7,2.86005266]
[1641736530517,0.00113685,3092.8,3092.7,0.77780003]
[1641736530718,1.96101842,3092.9,3092.7,0.77780003]
[1641736531324,1.09594866,3092.9,3092.7,0.77780003]
[1641736531526,0.01068743,3094.0,3093.0,1.37819769]
[1641736531920,0.01068743,3094.0,3093.2,18.83]
[1641736531921,0.00454738,3093.6,3093.2,18.83]
[1641736532320,0.00397896,3093.5,3093.2,18.83]
[1641736532522,0.00397896,3093.5,3093.3,0.79719251]
[1641736532823,0.00341054,3093.4,3093.3,19.92719251]
[1641736533020,0.00341054,3093.4,3093.3,19.62719251]
[1641736533225,0.00341054,3093.4,3093.3,0.79719251]
[1641736533873,0.00341054,3093.4,3093.3,8.69719251]
[1641736534472,0.00341054,3093.4,3093.3,0.79719251]
[1641736534877,0.00341054,3093.4,3093.3,12.34719251]
[1641736535076,1.0,3095.0,3093.4,16.0]
[1641736535275,1.3,3095.0,3094.9,1.07527838]
[1641736535475,1.3,3095.0,3093.5,2.16415781]
[1641736535476,0.00341054,3094.0,3093.5,2.16415781]
[1641736535676,0.00341054,3094.0,3093.5,2.31916533]
[1641736535878,0.00284211,3093.9,3093.3,2.47998235]
[1641736536078,0.00284211,3093.9,3093.1,2.37814057]
[1641736536278,0.80836,3094.3,3093.1,2.37814057]
[1641736536279,0.00227369,3093.8,3093.1,2.37814057]
[1641736536475,0.00227369,3093.8,3093.6,2.24211845]
[1641736536675,0.00170527,3093.7,3093.6,2.24211845]
[1641736536879,0.00170527,3093.7,3093.6,9.21666868]
[1641736537514,0.00170527,3093.7,3093.6,7.8]
[1641736538516,0.00170527,3093.7,3093.6,28.51467494]
[1641736538719,0.00170527,3093.7,3093.6,30.88738064]
[1641736538922,0.8083,3094.8,3094.5,1.41779815]
[1641736539318,1.6165845,3094.8,3093.8,2.30386732]
[1641736539519,1.6165845,3094.8,3093.7,15.9548]
[1641736539920,38.52407895,3094.6,3093.7,4.9548]
[1641736540121,38.52407895,3094.6,3094.2,0.64218096]
[1641736540419,0.00454738,3094.5,3094.2,1.98557298]
[1641736540819,38.52407895,3094.6,3094.2,1.98557298]
[1641736540820,0.00397896,3094.4,3094.2,1.98557298]
[1641736541280,0.00341054,3094.3,3094.2,1.98557298]
[1641736543371,0.00341054,3094.3,3094.2,1.92057298]
[1641736550267,0.00341054,3094.3,3093.7,1.2196]
[1641736550668,0.80836,3094.4,3093.5,22.0463]
[1641736550669,0.00284211,3094.2,3093.5,22.0463]
[1641736550872,0.00284211,3094.2,3093.5,18.83]
[1641736551068,0.80836,3094.4,3093.3,1.21860423]
[1641736551069,0.00227369,3094.1,3093.3,1.21860423]
[1641736551272,0.00227369,3094.1,3093.3,3.1684865]
[1641736551470,0.80854,3093.7,3093.4,0.00170527]
[1641736551672,0.80854,3093.6,3093.4,0.00170527]
[1641736551876,3.23575527,3094.0,3093.8,1.20478988]
[1641736552171,0.00113684,3093.9,3093.8,1.20478988]
[1641736552372,1.00113684,3093.9,3093.8,1.20478988]
[1641736552618,1.00113684,3093.9,3093.4,0.00170527]
[1641736553620,1.80960684,3093.9,3093.5,1.10600639]
[1641736553824,2.61805684,3093.9,3093.4,0.00170527]
[1641736554019,0.8085167,3093.8,3093.4,0.00170527]
[1641736554220,2.4256467,3093.8,3093.4,0.00170527]
[1641736554620,0.80853,3093.7,3093.4,0.00170527]
[1641736554822,1.6171,3093.7,3093.4,0.00170527]
[1641736555022,1.6171,3093.7,3093.1,0.00341054]
[1641736555225,1.6171996,3093.4,3093.0,0.00397897]
[1641736555422,1.6171996,3093.4,3092.9,1.96101842]
[1641736555423,1.6171996,3093.4,3092.9,1.89999739]
[1641736555623,0.00170527,3093.3,3093.0,2.75458811]
[1641736555823,0.00170527,3093.3,3093.0,3.38041341]
[1641736556027,0.00113685,3093.2,3093.0,3.38041341]
[1641736556466,1.00397897,3093.7,3093.0,0.6258253]
[1641736556667,1.61737,3093.2,3093.0,1.77632366]
[1641736556867,0.8087,3093.2,3093.0,1.77632366]
[1641736557071,1.80866,3093.5,3093.0,1.77632366]
[1641736557368,0.0022737,3093.4,3093.0,1.77632366]
[1641736557769,0.00170527,3093.3,3093.0,1.77632366]
[1641736558068,3.4256954,3093.7,3093.0,1.77632366]
[1641736558069,0.00113685,3093.2,3093.0,1.77632366]
[1641736558270,0.00113685,3093.2,3093.1,7.7545278]
[1641736558768,0.00113685,3093.2,3093.1,2.7545278]
[1641736559169,0.8084675,3093.9,3093.6,1.31987818]
[1641736559469,0.01056852,3094.3,3093.7,1.99741408]
[1641736559870,0.00397896,3093.9,3093.7,1.99741408]
[1641736560323,0.00341054,3093.8,3093.7,1.99741408]
[1641736561722,0.00341054,3093.8,3093.7,7.59741408]
[1641736563224,0.77228906,3094.4,3093.8,11.55]
[1641736563425,0.77228906,3094.4,3094.3,0.62745432]
[1641736563628,0.77228906,3094.4,3094.2,1.03622123]
[1641736563873,1.80832751,3094.5,3093.7,4.25]
[1641736564074,0.00284212,3094.3,3093.7,4.25]
[1641736564276,0.00341054,3094.4,3093.7,4.25]
[1641736564474,1.80832751,3094.5,3093.6,1.31987818]
[1641736564475,0.00227369,3094.2,3093.6,1.31987818]
[1641736564673,0.80833,3094.2,3094.0,0.7087774]
[1641736564878,0.00170527,3094.1,3093.9,1.11186031]
[1641736565273,0.00113685,3094.0,3093.9,1.11186031]
[1641736565672,0.00113685,3094.0,3093.6,1.31987818]
[1641736565875,0.80952685,3094.0,3093.6,1.31987818]
[1641736566074,1.80952685,3094.0,3093.6,1.31987818]
[1641736566475,1.30113685,3094.0,3093.6,1.31987818]
[1641736566777,0.30113685,3094.0,3093.6,1.31987818]
[1641736566975,0.80855,3093.9,3093.6,1.31987818]
[1641736567184,1.61714,3093.8,3093.6,1.31987818]
[1641736567619,2.42575,3093.8,3093.6,1.31987818]
[1641736568120,3.42575,3093.8,3093.6,1.31987818]
[1641736569520,3.42575,3093.8,3093.6,1.26987818]
[1641736570322,2.42575,3093.8,3093.6,1.26987818]
[1641736570923,3.42575,3093.8,3093.6,1.26987818]
[1641736571379,3.72575,3093.8,3093.6,1.26987818]
[1641736572578,0.8086411,3093.5,3093.1,0.52946747]
[1641736572776,0.80865,3093.4,3093.1,0.52946747]
[1641736573078,0.80865,3093.4,3093.2,0.00341054]
[1641736573275,0.80865,3093.4,3093.1,0.46787801]
[1641736573675,1.6173007,3093.4,3093.1,0.46787801]
[1641736573977,0.80866,3093.3,3093.1,0.46787801]
[1641736574779,1.61732,3093.3,3093.1,0.46787801]
[1641736575228,2.42594,3093.3,3093.0,1.21860423]
[1641736575421,0.80861,3093.2,3093.0,1.21860423]
[1641736576122,0.80861,3093.2,3093.1,6.3691809]
[1641736576322,0.80861,3093.2,3093.1,7.79222076]
[1641736576522,0.80861,3093.2,3093.1,2.04222076]
[1641736576723,0.80861,3093.2,3093.1,4.79676955]
[1641736577324,0.80861,3093.2,3093.1,3.37372969]
[1641736577524,0.80861,3093.2,3093.1,2.75454879]
[1641736578794,0.80861,3093.2,3093.0,2.75454879]
[1641736578984,0.80861,3093.2,3093.0,4.46971468]
[1641736579186,1.10488906,3093.4,3093.1,2.75454879]
[1641736579886,0.80861,3093.2,3093.1,2.75454879]
[1641736581388,0.80861,3093.2,3093.1,1.29854879]
[1641736582188,0.80861,3093.2,3093.1,1.23354879]
[1641736584226,1.80866,3093.3,3093.1,2.25760937]
[1641736584426,1.61708,3093.5,3093.1,2.25760937]
[1641736584829,0.00113685,3093.4,3093.1,2.25760937]
[1641736585027,0.95113685,3093.6,3093.1,1.02406058]
[1641736585225,2.56834685,3093.6,3093.2,0.00113685]
[1641736585430,2.51834685,3093.6,3093.2,0.00113685]
[1641736585627,6.70856,3093.3,3093.2,0.00113685]
[1641736586027,6.70856,3093.3,3093.0,0.0022737]
[1641736586280,1.0,3093.2,3093.0,0.0022737]
[1641736586674,1.808722,3093.2,3093.0,0.0022737]
[1641736587276,14.47758266,3093.1,3093.0,0.0022737]
[1641736587476,1.90227109,3092.9,3092.4,1.21860423]
[1641736587876,0.8090225,3092.7,3092.5,0.00284211]
[1641736588080,0.3,3092.6,3092.5,0.00284211]
[1641736588275,0.3,3092.6,3092.2,1.89653259]
[1641736588276,0.80902,3092.4,3092.2,1.89653259]
[1641736588576,2.10902,3092.4,3092.3,0.00113685]
[1641736589177,2.10902,3092.4,3092.2,0.44166944]
[1641736589375,3.72692,3092.4,3092.2,0.44166944]
[1641736589674,1.80902,3092.4,3092.2,0.44166944]
[1641736589875,1.80902,3092.4,3092.2,0.37666944]
[1641736590323,1.80902,3092.4,3091.8,0.95671965]
[1641736590527,2.61789,3092.4,3091.8,0.95671965]
[1641736590726,0.80902,3092.4,3091.9,0.0022737]
[1641736590924,5.13754359,3092.9,3091.9,21.03605044]
[1641736590925,1.90227109,3092.9,3091.9,21.03605044]
[1641736591225,1.90227109,3092.9,3092.8,1.23962289]
[1641736591423,1.90227109,3092.9,3092.8,1.90479378]
[1641736591626,1.90568163,3092.9,3092.8,1.90479378]
[1641736592625,1.90568163,3092.9,3092.8,0.66517089]
[1641736593126,0.8087618,3092.8,3092.1,2.34022512]
[1641736593326,0.8087618,3092.8,3092.0,8.50518937]
[1641736593523,0.8087618,3092.8,3092.0,6.81334247]
[1641736593524,0.00227369,3092.7,3092.0,6.81334247]
[1641736593788,0.00227369,3092.7,3092.5,1.27525655]
[1641736593980,0.81047527,3092.6,3092.5,1.27525655]
[1641736594277,0.00170527,3092.6,3092.5,1.88422853]
[1641736595279,0.00170527,3092.6,3092.5,0.60897198]
[1641736595779,0.00170527,3092.6,3092.1,0.00113685]
[1641736595983,0.80881,3092.5,3092.1,0.00113685]
[1641736596185,0.80994685,3092.5,3092.1,0.00113685]
[1641736596581,0.80881,3092.4,3092.0,1.39812676]
[1641736596782,0.80881,3092.4,3091.8,0.00284212]
[1641736596982,2.4269,3092.4,3092.1,0.00113685]
[1641736597185,0.80905,3092.3,3091.8,0.00284212]
[1641736597382,0.80916,3092.1,3091.8,0.00284212]
[1641736597626,0.80915,3091.9,3091.6,0.98634774]
[1641736597824,1.6183,3091.8,3091.1,5.23124996]
[1641736598223,0.6,3091.7,3091.2,0.00284212]
[1641736598423,1.61828,3091.6,3091.1,1.21179208]
[1641736598628,0.80914,3091.6,3091.1,1.21179208]
[1641736598925,1.6183202,3091.4,3091.3,0.83956521]
[1641736599325,0.81029685,3091.4,3091.1,1.14679208]
[1641736599525,0.81029685,3091.4,3091.3,1.2321414]
[1641736599925,1.91640447,3091.6,3091.3,1.2321414]
[1641736600128,1.6182514,3091.5,3091.3,1.2321414]
[1641736600527,1.61833,3091.4,3091.3,1.2321414]
[1641736601025,1.61833,3091.4,3091.2,1.2321414]
[1641736601295,3.4274615,3091.4,3091.2,1.2321414]
[1641736601478,2.4274615,3091.4,3091.2,1.2321414]
[1641736601676,1.0,3091.3,3091.2,1.2321414]
[1641736601877,0.80917,3091.3,3091.1,1.2321414]
[1641736602077,1.70917,3091.3,3091.2,0.00113685]
[1641736602480,0.70917,3091.3,3091.2,0.00113685]
[1641736603078,1.51833,3091.3,3091.2,0.00113685]
[1641736603279,2.11833,3091.3,3091.2,0.00113685]
[1641736603580,3.11833,3091.3,3091.2,0.00113685]
[1641736603981,3.11833,3091.3,3091.2,2.75718063]
[1641736604182,6.76833,3091.3,3091.2,2.75718063]
[1641736604381,1.46459975,3091.3,3091.2,2.75718063]
[1641736604581,0.46459975,3091.3,3091.2,2.75718063]
[1641736604782,1.46459975,3091.3,3091.2,2.75718063]
[1641736605027,1.46459975,3091.3,3091.2,0.00113685]
[1641736605028,2.27376975,3091.3,3091.2,0.00113685]
[1641736605428,2.27376975,3091.3,3090.7,0.00397897]
[1641736605429,0.80935,3091.0,3090.7,0.00397897]
[1641736605630,0.8094441,3090.9,3090.7,0.00397897]
[1641736606030,2.6188941,3090.9,3090.7,2.76002275]
[1641736606229,2.9188941,3090.9,3090.7,2.76002275]
[1641736606432,2.1094441,3090.9,3090.8,0.00341054]
[1641736606627,4.0283341,3090.9,3090.8,0.00341054]
[1641736606829,4.0283341,3090.9,3090.8,2.75945432]
[1641736607234,12.2283341,3090.9,3090.8,2.75945432]
[1641736607831,12.2283341,3090.9,3090.8,0.00341054]
[1641736608031,4.0283341,3090.9,3090.8,0.00341054]
[1641736608235,4.0283341,3090.9,3090.6,1.26519785]
[1641736608236,0.80938,3090.7,3090.6,1.26519785]
[1641736608534,1.61889,3091.0,3090.6,1.26974524]
[1641736608790,0.809243,3091.1,3090.6,1.26974524]
[1641736608986,0.809243,3091.1,3090.7,0.73594014]
[1641736609185,1.61849,3091.2,3090.7,0.73594014]
[1641736609384,0.01045093,3091.5,3090.8,0.00341054]
[1641736609584,0.01045093,3091.5,3091.4,0.99950729]
[1641736609985,0.01045093,3091.5,3090.8,1.21451054]
[1641736610187,0.01045093,3091.5,3090.8,3.97055432]
[1641736610386,0.80916,3091.4,3090.9,0.00284212]
[1641736610587,0.80916,3091.2,3090.9,0.00284212]
[1641736611186,0.80916,3091.2,3091.0,1.38280401]
[1641736611589,0.80916,3091.2,3091.1,0.00170527]
[1641736611886,1.61828,3091.4,3091.1,0.00170527]
[1641736612087,0.80909,3091.7,3091.1,2.75774905]
[1641736612285,1.0,3091.9,3091.2,2.20634502]
[1641736612541,1.61805,3092.3,3091.2,2.20634502]
[1641736612542,0.00113684,3091.6,3091.2,2.20634502]
[1641736612737,0.00113684,3091.6,3091.3,2.0678522]
[1641736612942,0.80902,3091.8,3091.3,0.76805496]
[1641736613343,0.00170527,3091.7,3091.5,1.33165693]
[1641736613742,0.00284211,3091.9,3091.5,1.33165693]
[1641736614145,0.80908,3091.6,3091.5,0.73724759]
[1641736614344,0.80908,3091.6,3091.1,0.00170527]
[1641736614543,1.10908,3091.6,3091.1,0.00170527]
[1641736614753,1.91842,3091.6,3091.0,0.0022737]
[1641736614944,1.91842,3091.6,3090.9,0.00284212]
[1641736615244,1.29516902,3091.5,3091.0,1.03753924]
[1641736615644,2.10437902,3091.5,3091.1,0.68030749]
[1641736615944,2.10437902,3091.5,3091.1,2.75800359]
[1641736615945,0.80924,3091.3,3091.1,2.75800359]
[1641736616412,2.42773,3091.3,3091.1,2.75800359]
[1641736616600,3.42773,3091.3,3091.1,2.75800359]
[1641736616804,4.2369453,3091.3,3091.1,2.75800359]
[1641736616999,1.80924,3091.3,3091.1,3.45546631]
[1641736617901,1.80924,3091.3,3091.1,2.75800359]
[1641736618200,1.80924,3091.3,3091.2,2.75629832]
[1641736619002,1.80924,3091.3,3091.1,2.75800359]
[1641736619202,3.42778,3091.3,3091.1,2.75800359]
[1641736619902,3.42778,3091.3,3091.1,0.00170527]
[1641736619903,3.72778,3091.3,3091.1,0.00170527]
[1641736620325,3.72778,3091.3,3090.8,4.0283409]
[1641736620326,0.8092943,3091.2,3090.9,0.00284212]
[1641736620526,2.91572602,3091.2,3090.9,0.00284212]
[1641736621531,0.80929,3091.1,3090.9,0.00284212]
[1641736621728,0.80931,3090.8,3090.6,1.26430615]
[1641736622128,0.80931,3090.8,3090.7,0.00113685]
[1641736622335,2.10931,3090.8,3090.7,0.00113685]
[1641736622629,2.10931,3090.8,3090.0,2.45725255]
[1641736622630,4.02695896,3090.8,3090.0,2.45725255]
[1641736622829,1.6191,3090.4,3090.0,2.45725255]
[1641736623030,0.8095644,3090.2,3090.1,0.00341054]
[1641736623429,0.8095644,3090.2,3090.0,0.00397896]
[1641736624188,0.8095644,3090.2,3090.1,0.71773245]
[1641736624390,1.61882,3090.9,3090.7,1.22340727]
[1641736624598,3.42964685,3091.1,3090.7,1.22340727]
[1641736624599,2.42964685,3091.1,3090.7,1.22340727]
[1641736624792,0.00113685,3090.9,3090.7,1.22340727]
[1641736624990,0.00170527,3091.0,3090.7,1.22340727]
[1641736625191,1.29516902,3091.5,3090.7,1.22340727]
[1641736625192,0.00397897,3091.4,3090.7,1.22340727]
[1641736625389,0.80936,3090.8,3090.7,1.88582555]
[1641736625592,0.80936,3090.8,3090.7,1.22340727]
[1641736625790,0.80936,3090.8,3090.2,4.9506]
[1641736625992,0.80936,3090.8,3090.0,3.24897896]
[1641736626192,0.80936,3090.8,3090.3,0.00227369]
[1641736626690,0.80936,3090.8,3090.7,1.33826003]
[1641736626892,0.80936,3090.8,3090.7,2.03486546]
[1641736627095,0.80927,3091.0,3090.7,2.03486546]
[1641736627538,0.00113685,3090.9,3090.7,2.03486546]
[1641736628032,52.78339372,3090.9,3090.7,2.03486546]
[1641736628930,52.78339372,3090.9,3090.7,0.69660543]
[1641736629130,0.80931,3090.8,3090.7,0.69660543]
[1641736629530,0.80931,3090.8,3090.3,0.00227369]
[1641736629934,0.80931,3090.8,3090.5,1.16445218]
[1641736630732,0.80931,3090.8,3090.7,0.77107425]
[1641736630934,52.78339372,3090.9,3090.5,1.2870096]
[1641736631134,0.00341054,3090.8,3090.5,1.2870096]
[1641736631385,1.61846,3091.4,3090.9,43.646411]
[1641736631682,9.99560109,3092.9,3091.9,1.20699036]
[1641736631683,1.61896127,3092.2,3091.9,1.20699036]
[1641736632179,0.80892,3092.3,3091.9,1.81491224]
[1641736632580,0.80892,3092.3,3091.2,5.0897]
[1641736632780,3.83719726,3092.7,3091.2,1.1569]
[1641736632781,3.83729726,3092.7,3091.2,1.1569]
[1641736633079,3.83729726,3092.7,3091.3,1.22959986]
[1641736633080,0.00625265,3091.9,3091.3,1.22959986]
[1641736633378,0.00568423,3091.8,3091.3,1.22959986]
[1641736633579,0.00568423,3091.8,3091.5,0.72970012]
[1641736633782,0.8089996,3092.2,3091.7,7.85398001]
[1641736633979,0.80902,3092.0,3091.7,7.85398001]
[1641736634180,43.88524249,3092.0,3091.7,1.00398001]
[1641736635045,43.88524249,3092.0,3091.5,0.72970012]
[1641736635731,43.07622249,3092.0,3091.6,1.50669006]
[1641736635932,0.0073895,3092.1,3091.6,4.29580482]
[1641736636133,0.0073895,3092.1,3091.7,1.17305616]
[1641736636332,0.00682108,3092.0,3091.7,1.17305616]
[1641736636731,0.00625265,3091.9,3091.7,1.17305616]
[1641736637132,0.00568423,3091.8,3091.7,1.17305616]
[1641736637834,0.00568423,3091.8,3091.7,8.22305616]
[1641736638032,0.00568423,3091.8,3091.7,1.17305616]
[1641736638433,0.00568423,3091.8,3091.5,0.72970012]
[1641736638883,0.00511581,3091.7,3091.3,1.22959986]
[1641736639280,0.00454738,3091.6,3091.2,5.56599986]
[1641736639479,0.00454738,3091.6,3091.2,2.38649986]
[1641736639680,0.00397896,3091.5,3091.4,6.03326992]
[1641736640780,0.00397896,3091.5,3091.4,6.8876618]
[1641736640980,1.8090071,3092.2,3091.9,1.06966006]
[1641736641280,2.1090071,3092.2,3091.9,1.06966006]
[1641736641680,2.10895,3092.2,3091.9,1.06966006]
[1641736641883,1.80895,3092.2,3091.9,1.06966006]
[1641736642081,1.80895,3092.2,3091.9,1.76248381]
[1641736642740,1.80895,3092.2,3091.5,1.22959986]
[1641736642741,2.10895,3092.2,3091.5,1.22959986]
[1641736642938,0.80904,3091.8,3091.5,1.22959986]
[1641736643338,0.00113685,3091.7,3091.3,1.22959986]
[1641736643939,0.00113685,3091.7,3091.5,0.73204201]
[1641736644141,0.00113685,3091.7,3091.6,1.06124285]
[1641736644640,0.00113685,3091.7,3091.4,1.22959986]
[1641736644841,2.69272738,3092.1,3091.4,1.22959986]
[1641736645041,2.69272738,3092.1,3091.5,0.00113685]
[1641736645042,0.3,3092.0,3091.5,0.00113685]
[1641736645245,0.00113684,3091.9,3091.5,0.00113685]
[1641736645444,0.80907,3091.8,3091.5,0.00113685]
[1641736645748,0.80907,3091.8,3091.4,0.00170527]
[1641736646294,0.80907,3091.8,3091.3,0.0022737]
[1641736647394,2.4274793,3091.7,3091.3,0.0022737]
[1641736647594,0.80923,3091.5,3091.3,0.0022737]
[1641736648297,0.80923,3091.5,3091.0,5.29865766]
[1641736648496,0.80923,3091.5,3091.0,6.66560238]
[1641736648696,0.80921,3091.3,3091.1,0.00113684]
[1641736648996,0.80921,3091.2,3091.1,0.00113684]
[1641736651932,0.80915,3091.4,3091.1,0.00113684]
[1641736652535,0.75915,3091.4,3091.1,0.00113684]
[1641736653134,0.80921,3091.3,3091.1,2.7574441]
[1641736653334,0.80922,3091.2,3091.1,2.7574441]
[1641736654283,0.80921,3091.4,3091.1,3.40535037]
[1641736654781,0.80921,3091.4,3091.1,2.7574441]
[1641736654985,1.61836,3091.4,3091.2,2.75630726]
[1641736655588,1.10922,3091.3,3091.2,2.75630726]
[1641736655784,1.10922,3091.3,3091.1,0.00113684]
[1641736655785,3.71821,3091.3,3091.1,0.00113684]
[1641736655989,7.30945,3091.2,3091.1,0.00113684]
[1641736656185,7.60945,3091.2,3091.1,0.00113684]
[1641736656385,1.10945,3091.2,3091.0,2.75630726]
[1641736656584,1.9189139,3091.2,3090.9,43.646411]
[1641736656784,2.7283939,3091.2,3090.9,43.646411]
[1641736656984,1.91881,3091.1,3090.9,43.646411]
[1641736657184,3.53764,3091.1,3090.9,43.646411]
[1641736658239,3.53764,3091.1,3090.9,42.189411]
[1641736658433,0.8094,3091.0,3090.9,42.189411]
[1641736658631,1.1094,3091.0,3090.9,42.189411]
[1641736658833,0.8094,3091.0,3090.9,42.19054785]
[1641736659240,0.80948,3091.2,3090.9,42.19054785]
[1641736659436,0.80919,3091.2,3090.9,42.19054785]
[1641736659633,1.69869422,3091.6,3090.9,42.19054785]
[1641736659634,0.01045093,3091.6,3091.0,2.07802347]
[1641736659832,0.01045093,3091.6,3091.0,2.01302347]
[1641736660037,0.00227369,3091.5,3091.0,2.01302347]
[1641736660335,0.00170527,3091.4,3091.0,2.01302347]
[1641736660736,0.00113684,3091.3,3091.0,2.01302347]
[1641736661032,0.48069488,3092.2,3091.0,2.01302347]
[1641736661033,1.0,3091.9,3091.1,15.95]
[1641736661282,1.0,3091.9,3091.8,1.27038694]
[1641736661679,1.81247054,3091.9,3091.8,1.27038694]
[1641736661880,1.00341054,3091.9,3091.8,1.27038694]
[1641736662282,0.00341054,3091.9,3091.8,2.10160123]
[1641736663287,35.2643518,3091.9,3091.8,2.10160123]
[1641736664885,35.2643518,3091.9,3091.3,1.23396381]
[1641736665133,35.2643518,3091.9,3091.2,1.23396381]
[1641736665134,0.80912,3091.5,3091.2,1.23396381]
[1641736665836,0.80912,3091.5,3091.3,1.0907641]
[1641736666034,3.23644,3091.7,3091.4,0.6280549]
[1641736666035,0.8091,3091.7,3091.4,0.6280549]
[1641736666234,0.00284212,3091.8,3091.4,0.6280549]
[1641736666435,0.00170527,3091.6,3091.4,0.6280549]
[1641736666635,0.0022737,3091.7,3091.4,0.6280549]
[1641736666836,0.00113685,3091.5,3091.4,0.6280549]
[1641736667036,0.00170527,3091.6,3091.4,0.6280549]
[1641736667239,3.53613,3092.0,3091.4,0.6280549]
[1641736667240,0.00113685,3091.5,3091.4,0.6280549]
[1641736667438,0.00113685,3091.5,3091.4,4.3780549]
[1641736667738,0.00113685,3091.5,3091.4,0.6280549]
[1641736668345,0.00113685,3091.5,3091.4,4.4280549]
[1641736668786,0.00113685,3091.5,3091.4,0.6280549]
[1641736668988,0.00113685,3091.5,3091.4,1.86201871]
[1641736669590,0.00113685,3091.5,3091.4,0.6280549]
[1641736671393,0.00113685,3091.5,3091.4,8.32854298]
[1641736671592,2.91292457,3092.3,3091.5,12.7]
[1641736671796,5.1385433,3092.9,3092.7,1.03203942]
[1641736671994,3.5208393,3092.9,3092.7,2.04053942]
[1641736672193,0.80886,3092.8,3092.7,2.04053942]
[1641736673044,0.80886,3092.8,3092.7,2.82350499]
[1641736673650,1.90227109,3092.9,3092.7,2.82350499]
[1641736675848,1.90227109,3092.9,3092.7,2.75850499]